[Event "Titled Tuesday Blitz January 10 Early 2023"]
[White "Doluhanova, Evgeniya"]
[Black "Flis, Pawel"]
[WhiteFideId "14112035"]
[BlackFideId "1112864"]
[WhiteElo "2275"]
[BlackElo "1879"]
[Result "1-0"]
[Round "08"]
[TimeControl "180+2"]
[Date "2023.01.10"]
[WhiteClock "0:00:13"]
[BlackClock "0:00:04"]

1. Nf3 {[%clk 0:03:00]}  Nf6 {[%clk 0:02:57]} 2. g3 {[%clk 0:03:00]}  g6 {[%clk 0:02:57]} 3. Bg2 {[%clk 0:03:00]}  Bg7 {[%clk 0:02:58]} 4. O-O {[%clk 0:03:00]}  O-O {[%clk 0:02:58]} 5. d4 {[%clk 0:02:59]}  d6 {[%clk 0:02:58]} 6. c4 {[%clk 0:03:00]}  c5 {[%clk 0:02:57]} 7. dxc5 {[%clk 0:02:57]}  dxc5 {[%clk 0:02:57]} 8. Qxd8 {[%clk 0:02:57]}  Rxd8 {[%clk 0:02:58]} 9. Nc3 {[%clk 0:02:56]}  Nc6 {[%clk 0:02:58]} 10. Be3 {[%clk 0:02:56]}  Be6 {[%clk 0:02:53]} 11. Rac1 {[%clk 0:02:49]}  Bxc4 {[%clk 0:02:46]} 12. b3 {[%clk 0:02:49]}  Be6 {[%clk 0:02:41]} 13. Bxc5 {[%clk 0:02:49]}  Rac8 {[%clk 0:02:40]} 14. Ng5 {[%clk 0:02:47]}  Bf5 {[%clk 0:02:12]} 15. e4 {[%clk 0:02:33]}  Bd7 {[%clk 0:02:07]} 16. Nd5 {[%clk 0:02:31]}  h6 {[%clk 0:01:55]} 17. Bxe7 {[%clk 0:01:47]}  hxg5 {[%clk 0:01:13]} 18. Nxf6+ {[%clk 0:01:32]}  Bxf6 {[%clk 0:01:07]} 19. Bxf6 {[%clk 0:01:32]}  Re8 {[%clk 0:01:08]} 20. Bxg5 {[%clk 0:01:30]}  Ne5 {[%clk 0:01:01]} 21. Rxc8 {[%clk 0:01:26]}  Rxc8 {[%clk 0:01:00]} 22. h3 {[%clk 0:01:24]}  Bc6 {[%clk 0:00:52]} 23. Rc1 {[%clk 0:01:20]}  Nd3 {[%clk 0:00:50]} 24. Rc3 {[%clk 0:01:18]}  Nb4 {[%clk 0:00:37]} 25. a4 {[%clk 0:01:14]}  Bd7 {[%clk 0:00:36]} 26. Rxc8+ {[%clk 0:01:12]}  Bxc8 {[%clk 0:00:37]} 27. e5 {[%clk 0:01:08]}  b6 {[%clk 0:00:36]} 28. Be7 {[%clk 0:01:04]}  Nd3 {[%clk 0:00:32]} 29. Bd6 {[%clk 0:01:01]}  Kg7 {[%clk 0:00:28]} 30. b4 {[%clk 0:00:48]}  Bd7 {[%clk 0:00:27]} 31. a5 {[%clk 0:00:46]}  bxa5 {[%clk 0:00:25]} 32. bxa5 {[%clk 0:00:46]}  a6 {[%clk 0:00:24]} 33. Bf1 {[%clk 0:00:44]}  Bb5 {[%clk 0:00:20]} 34. f4 {[%clk 0:00:39]}  f5 {[%clk 0:00:20]} 35. e6 {[%clk 0:00:29]}  Kf6 {[%clk 0:00:19]} 36. e7 {[%clk 0:00:30]}  Kf7 {[%clk 0:00:19]} 37. g4 {[%clk 0:00:26]}  fxg4 {[%clk 0:00:19]} 38. hxg4 {[%clk 0:00:26]}  Ke8 {[%clk 0:00:18]} 39. g5 {[%clk 0:00:22]}  Kd7 {[%clk 0:00:11]} 40. f5 {[%clk 0:00:15]}  gxf5 {[%clk 0:00:06]} 41. g6 {[%clk 0:00:14]}  Ke6 {[%clk 0:00:05]} 42. g7 {[%clk 0:00:13]}  Kf7 {[%clk 0:00:05]} 43. Bxd3 {[%clk 0:00:13]}  Bxd3 {[%clk 0:00:04]} 44. g8=Q+ {[%clk 0:00:13]}  Kxg8 {[%clk 0:00:04]} 45. e8=Q+ {[%clk 0:00:13]}  Kg7 {[%clk 0:00:03]} 46. Qe5+ {[%clk 0:00:13]}  Kg6 {[%clk 0:00:03]} 47. Qg3+ {[%clk 0:00:13]}  Kf6 {[%clk 0:00:02]} 48. Qxd3 {[%clk 0:00:13]}  Kg5 {[%clk 0:00:03]} 49. Qg3+ {[%clk 0:00:12]}  Kf6 {[%clk 0:00:04]} 50. Qf4 {[%clk 0:00:13]} 1-0


[Site "https://www.chess.com"]

[Event "Titled Tuesday Blitz January 10 Early 2023"]
[White "Forgacs, Attila Jr."]
[Black "Bashirli, Saadat"]
[WhiteFideId "773654"]
[BlackFideId "13429990"]
[WhiteElo "2264"]
[BlackElo "1571"]
[Result "1-0"]
[Round "08"]
[TimeControl "180+2"]
[Date "2023.01.10"]
[WhiteClock "0:00:07"]
[BlackClock "0:00:01"]

1. e4 {[%clk 0:03:00]}  c5 {[%clk 0:02:59]} 2. d3 {[%clk 0:03:00]}  g6 {[%clk 0:02:58]} 3. g3 {[%clk 0:03:01]}  Bg7 {[%clk 0:02:58]} 4. Bg2 {[%clk 0:03:02]}  e6 {[%clk 0:02:58]} 5. f4 {[%clk 0:03:02]}  Ne7 {[%clk 0:02:58]} 6. Nf3 {[%clk 0:03:02]}  O-O {[%clk 0:02:57]} 7. O-O {[%clk 0:03:02]}  d5 {[%clk 0:02:57]} 8. e5 {[%clk 0:03:02]}  Nbc6 {[%clk 0:02:52]} 9. c3 {[%clk 0:03:02]}  Bd7 {[%clk 0:02:49]} 10. Be3 {[%clk 0:03:01]}  b6 {[%clk 0:02:47]} 11. Bf2 {[%clk 0:03:01]}  Qc7 {[%clk 0:02:46]} 12. a4 {[%clk 0:03:00]}  a6 {[%clk 0:02:41]} 13. Nbd2 {[%clk 0:02:55]}  Na7 {[%clk 0:02:35]} 14. g4 {[%clk 0:02:52]}  f6 {[%clk 0:02:33]} 15. exf6 {[%clk 0:02:52]}  Bxf6 {[%clk 0:02:32]} 16. Re1 {[%clk 0:02:51]}  Qxf4 {[%clk 0:02:29]} 17. h3 {[%clk 0:02:39]}  Qc7 {[%clk 0:02:20]} 18. d4 {[%clk 0:02:35]}  Nac6 {[%clk 0:02:17]} 19. dxc5 {[%clk 0:02:34]}  bxc5 {[%clk 0:02:12]} 20. Bxc5 {[%clk 0:02:35]}  Qg3 {[%clk 0:02:04]} 21. Bf2 {[%clk 0:02:30]}  Qc7 {[%clk 0:01:56]} 22. Nb3 {[%clk 0:02:27]}  Rab8 {[%clk 0:01:55]} 23. Nc5 {[%clk 0:02:16]}  Rxb2 {[%clk 0:01:42]} 24. Nxe6 {[%clk 0:02:16]}  Bxe6 {[%clk 0:01:42]} 25. Rxe6 {[%clk 0:02:17]}  Bxc3 {[%clk 0:01:41]} 26. Qd3 {[%clk 0:02:07]}  Bg7 {[%clk 0:01:33]} 27. Rae1 {[%clk 0:02:04]}  a5 {[%clk 0:01:32]} 28. Bh4 {[%clk 0:01:58]}  Nc8 {[%clk 0:01:24]} 29. Qxd5 {[%clk 0:01:51]}  Nb4 {[%clk 0:01:19]} 30. Qe4 {[%clk 0:01:34]}  Qc3 {[%clk 0:01:12]} 31. Re8 {[%clk 0:01:23]}  Qc5+ {[%clk 0:01:01]} 32. Kh1 {[%clk 0:01:19]}  Qd6 {[%clk 0:00:52]} 33. Qc4+ {[%clk 0:01:07]}  Qd5 {[%clk 0:00:40]} 34. Qxc8 {[%clk 0:00:58]}  Nd3 {[%clk 0:00:36]} 35. Rxf8+ {[%clk 0:00:50]}  Bxf8 {[%clk 0:00:35]} 36. Qe6+ {[%clk 0:00:51]}  Qxe6 {[%clk 0:00:33]} 37. Rxe6 {[%clk 0:00:52]}  Nf4 {[%clk 0:00:32]} 38. Re5 {[%clk 0:00:19]}  Nxg2 {[%clk 0:00:30]} 39. Bf6 {[%clk 0:00:20]}  Nf4 {[%clk 0:00:27]} 40. Rxa5 {[%clk 0:00:17]}  Rb3 {[%clk 0:00:22]} 41. Ne5 {[%clk 0:00:16]}  Rxh3+ {[%clk 0:00:19]} 42. Kg1 {[%clk 0:00:16]}  Ra3 {[%clk 0:00:19]} 43. Ra8 {[%clk 0:00:15]}  Nd5 {[%clk 0:00:16]} 44. Bg5 {[%clk 0:00:12]}  Ra1+ {[%clk 0:00:12]} 45. Kf2 {[%clk 0:00:12]}  Ra2+ {[%clk 0:00:12]} 46. Ke1 {[%clk 0:00:11]}  Nc3 {[%clk 0:00:11]} 47. Bh6 {[%clk 0:00:08]}  Ra1+ {[%clk 0:00:10]} 48. Kd2 {[%clk 0:00:07]}  Ne4+ {[%clk 0:00:01]} 49. Kc2 {[%clk 0:00:07]} 1-0


[Site "https://www.chess.com"]

[Event "Titled Tuesday Blitz January 10 Early 2023"]
[White "Vifleemskaia, Svetlana"]
[Black "Skurikhin, Dmitrij"]
[WhiteFideId "4129490"]
[BlackFideId "4161297"]
[WhiteElo "1971"]
[BlackElo "2297"]
[Result "0-1"]
[Round "08"]
[TimeControl "180+2"]
[Date "2023.01.10"]
[WhiteClock "0:00:11"]
[BlackClock "0:01:25"]

1. d4 {[%clk 0:03:00]}  d5 {[%clk 0:02:59]} 2. c4 {[%clk 0:03:00]}  c6 {[%clk 0:02:59]} 3. cxd5 {[%clk 0:03:00]}  cxd5 {[%clk 0:02:59]} 4. Bf4 {[%clk 0:03:01]}  Nf6 {[%clk 0:02:51]} 5. Nc3 {[%clk 0:03:01]}  Nc6 {[%clk 0:02:51]} 6. e3 {[%clk 0:03:01]}  Bf5 {[%clk 0:02:51]} 7. Qb3 {[%clk 0:03:00]}  Na5 {[%clk 0:02:49]} 8. Qa4+ {[%clk 0:02:59]}  Bd7 {[%clk 0:02:48]} 9. Qc2 {[%clk 0:02:59]}  Rc8 {[%clk 0:02:48]} 10. Bd3 {[%clk 0:02:57]}  Nc6 {[%clk 0:02:44]} 11. a3 {[%clk 0:02:56]}  Bg4 {[%clk 0:02:42]} 12. f3 {[%clk 0:02:40]}  Bh5 {[%clk 0:02:41]} 13. Nge2 {[%clk 0:02:40]}  Bg6 {[%clk 0:02:40]} 14. O-O {[%clk 0:02:38]}  e6 {[%clk 0:02:39]} 15. Rac1 {[%clk 0:02:37]}  a6 {[%clk 0:02:38]} 16. Rfd1 {[%clk 0:02:10]}  Be7 {[%clk 0:02:36]} 17. Bxg6 {[%clk 0:02:03]}  hxg6 {[%clk 0:02:37]} 18. e4 {[%clk 0:01:59]}  Nh5 {[%clk 0:02:22]} 19. Be3 {[%clk 0:01:56]}  Bg5 {[%clk 0:02:17]} 20. f4 {[%clk 0:01:45]}  Be7 {[%clk 0:02:10]} 21. e5 {[%clk 0:01:29]}  g5 {[%clk 0:02:08]} 22. f5 {[%clk 0:01:20]}  O-O {[%clk 0:01:54]} 23. g4 {[%clk 0:01:16]}  Nf4 {[%clk 0:01:52]} 24. Nxf4 {[%clk 0:01:15]}  gxf4 {[%clk 0:01:52]} 25. Bxf4 {[%clk 0:01:16]}  Nxd4 {[%clk 0:01:52]} 26. Rxd4 {[%clk 0:01:14]}  Bc5 {[%clk 0:01:50]} 27. Be3 {[%clk 0:01:12]}  Bxd4 {[%clk 0:01:49]} 28. Bxd4 {[%clk 0:01:12]}  Qg5 {[%clk 0:01:46]} 29. h3 {[%clk 0:00:27]}  exf5 {[%clk 0:01:42]} 30. Re1 {[%clk 0:00:20]}  fxg4 {[%clk 0:01:39]} 31. Qg2 {[%clk 0:00:20]}  Rc4 {[%clk 0:01:34]} 32. Be3 {[%clk 0:00:15]}  Qxe5 {[%clk 0:01:32]} 33. Qxd5 {[%clk 0:00:13]}  Qg3+ {[%clk 0:01:30]} 34. Qg2 {[%clk 0:00:12]}  Qxe1+ {[%clk 0:01:28]} 35. Kh2 {[%clk 0:00:11]}  Qxe3 {[%clk 0:01:25]} 0-1


[Site "https://www.chess.com"]

[Event "Titled Tuesday Blitz January 10 Early 2023"]
[White "Ivanova, Karina"]
[Black "Matveeva, Olga"]
[WhiteFideId "24139750"]
[BlackFideId "24107018"]
[WhiteElo "2085"]
[BlackElo "2128"]
[Result "0-1"]
[Round "08"]
[TimeControl "180+2"]
[Date "2023.01.10"]
[WhiteClock "0:00:53"]
[BlackClock "0:00:51"]

1. Nf3 {[%clk 0:02:50]}  d5 {[%clk 0:02:59]} 2. g3 {[%clk 0:02:50]}  Nf6 {[%clk 0:02:58]} 3. Bg2 {[%clk 0:02:50]}  e6 {[%clk 0:02:59]} 4. O-O {[%clk 0:02:50]}  Be7 {[%clk 0:02:59]} 5. d4 {[%clk 0:02:50]}  O-O {[%clk 0:02:58]} 6. Nbd2 {[%clk 0:02:50]}  c5 {[%clk 0:02:58]} 7. c4 {[%clk 0:02:48]}  Nc6 {[%clk 0:02:52]} 8. cxd5 {[%clk 0:02:45]}  exd5 {[%clk 0:02:51]} 9. dxc5 {[%clk 0:02:41]}  Bxc5 {[%clk 0:02:52]} 10. a3 {[%clk 0:02:41]}  a5 {[%clk 0:02:49]} 11. Nb3 {[%clk 0:02:40]}  Bb6 {[%clk 0:02:47]} 12. Nbd4 {[%clk 0:02:40]}  Re8 {[%clk 0:02:44]} 13. e3 {[%clk 0:02:39]}  Bg4 {[%clk 0:02:40]} 14. Qd3 {[%clk 0:02:31]}  Ne4 {[%clk 0:02:31]} 15. b3 {[%clk 0:02:26]}  Rc8 {[%clk 0:02:20]} 16. Bb2 {[%clk 0:02:23]}  Qe7 {[%clk 0:02:05]} 17. Rac1 {[%clk 0:02:19]}  h6 {[%clk 0:02:03]} 18. Qb5 {[%clk 0:02:12]}  Ba7 {[%clk 0:01:48]} 19. Qxd5 {[%clk 0:02:07]}  Rcd8 {[%clk 0:01:23]} 20. Nxc6 {[%clk 0:01:53]}  bxc6 {[%clk 0:01:19]} 21. Qxa5 {[%clk 0:01:44]}  Bxf3 {[%clk 0:01:12]} 22. Bxf3 {[%clk 0:01:44]}  Nd2 {[%clk 0:01:11]} 23. Bxc6 {[%clk 0:01:38]}  Nxf1 {[%clk 0:01:07]} 24. Bxe8 {[%clk 0:01:37]}  Nxe3 {[%clk 0:01:03]} 25. Qe5 {[%clk 0:01:18]}  Qxe5 {[%clk 0:00:55]} 26. Bxe5 {[%clk 0:01:18]}  Rxe8 {[%clk 0:00:54]} 27. Bf4 {[%clk 0:01:01]}  Ng4 {[%clk 0:00:52]} 28. Rf1 {[%clk 0:00:53]}  Nxf2 {[%clk 0:00:52]} 29. Rxf2 {[%clk 0:00:53]}  Re2 {[%clk 0:00:51]} 0-1


[Site "https://www.chess.com"]

[Event "Titled Tuesday Blitz January 10 Early 2023"]
[White "Melikhov, Evgeny V."]
[Black "Kornyukov, Alexey"]
[WhiteFideId "4122046"]
[BlackFideId "4150457"]
[WhiteElo "2269"]
[BlackElo "2452"]
[Result "1-0"]
[Round "08"]
[TimeControl "180+2"]
[Date "2023.01.10"]
[WhiteClock "0:00:52"]
[BlackClock "0:00:45"]

1. d4 {[%clk 0:03:00]}  d5 {[%clk 0:02:56]} 2. c4 {[%clk 0:03:00]}  e6 {[%clk 0:02:56]} 3. Nc3 {[%clk 0:02:59]}  Be7 {[%clk 0:02:57]} 4. cxd5 {[%clk 0:02:59]}  exd5 {[%clk 0:02:56]} 5. Bf4 {[%clk 0:02:56]}  Nf6 {[%clk 0:02:57]} 6. Qc2 {[%clk 0:02:53]}  O-O {[%clk 0:02:55]} 7. e3 {[%clk 0:02:53]}  c5 {[%clk 0:02:55]} 8. dxc5 {[%clk 0:02:51]}  Nc6 {[%clk 0:02:55]} 9. Nf3 {[%clk 0:02:49]}  Bg4 {[%clk 0:02:54]} 10. Be2 {[%clk 0:02:48]}  Bxf3 {[%clk 0:02:53]} 11. Bxf3 {[%clk 0:02:42]}  d4 {[%clk 0:02:53]} 12. Bxc6 {[%clk 0:02:37]}  dxc3 {[%clk 0:02:52]} 13. Bf3 {[%clk 0:02:29]}  cxb2 {[%clk 0:02:49]} 14. Qxb2 {[%clk 0:02:29]}  Qa5+ {[%clk 0:02:48]} 15. Qd2 {[%clk 0:02:27]}  Qxd2+ {[%clk 0:02:44]} 16. Kxd2 {[%clk 0:02:27]}  Bxc5 {[%clk 0:02:45]} 17. Bxb7 {[%clk 0:02:22]}  Rad8+ {[%clk 0:02:43]} 18. Ke2 {[%clk 0:02:19]}  Rd7 {[%clk 0:02:42]} 19. Bc6 {[%clk 0:02:07]}  Re7 {[%clk 0:02:34]} 20. Rac1 {[%clk 0:02:01]}  Ba3 {[%clk 0:02:31]} 21. Rc3 {[%clk 0:01:58]}  Bb4 {[%clk 0:02:28]} 22. Rb3 {[%clk 0:01:58]}  Bc5 {[%clk 0:02:25]} 23. Rc1 {[%clk 0:01:56]}  Rc8 {[%clk 0:02:08]} 24. Rxc5 {[%clk 0:01:51]}  Re6 {[%clk 0:02:06]} 25. Rbc3 {[%clk 0:01:37]}  h6 {[%clk 0:01:44]} 26. Bf3 {[%clk 0:01:35]}  Rxc5 {[%clk 0:01:39]} 27. Rxc5 {[%clk 0:01:35]}  Ra6 {[%clk 0:01:33]} 28. Rc2 {[%clk 0:01:33]}  g5 {[%clk 0:01:29]} 29. Be5 {[%clk 0:01:32]}  g4 {[%clk 0:01:27]} 30. Bb7 {[%clk 0:01:22]}  Rb6 {[%clk 0:01:20]} 31. Rc7 {[%clk 0:01:11]}  Kg7 {[%clk 0:01:12]} 32. a4 {[%clk 0:01:03]}  Kg6 {[%clk 0:01:10]} 33. a5 {[%clk 0:01:03]}  Rb5 {[%clk 0:00:53]} 34. Bd4 {[%clk 0:00:53]}  Ne4 {[%clk 0:00:45]} 35. Bxe4+ {[%clk 0:00:52]} 1-0


[Site "https://www.chess.com"]

[Event "Titled Tuesday Blitz January 10 Early 2023"]
[White "Winkels, Marcel"]
[Black "Zanette, Edgard Vinicius"]
[WhiteFideId "1003887"]
[BlackFideId "2109263"]
[WhiteElo "1960"]
[BlackElo "2085"]
[Result "0-1"]
[Round "08"]
[TimeControl "180+2"]
[Date "2023.01.10"]
[WhiteClock "0:00:01"]
[BlackClock "0:00:23"]

1. d4 {[%clk 0:03:00]}  Nf6 {[%clk 0:02:55]} 2. Bg5 {[%clk 0:03:01]}  e6 {[%clk 0:02:52]} 3. e4 {[%clk 0:02:59]}  h6 {[%clk 0:02:51]} 4. Bxf6 {[%clk 0:02:59]}  Qxf6 {[%clk 0:02:52]} 5. Nc3 {[%clk 0:02:59]}  d6 {[%clk 0:02:51]} 6. Qd2 {[%clk 0:02:57]}  a6 {[%clk 0:02:51]} 7. O-O-O {[%clk 0:02:52]}  Bd7 {[%clk 0:02:48]} 8. f4 {[%clk 0:02:50]}  g6 {[%clk 0:02:39]} 9. Nf3 {[%clk 0:02:49]}  Bg7 {[%clk 0:02:39]} 10. e5 {[%clk 0:02:49]}  Qe7 {[%clk 0:02:37]} 11. d5 {[%clk 0:02:46]}  O-O {[%clk 0:02:29]} 12. h4 {[%clk 0:02:42]}  dxe5 {[%clk 0:02:26]} 13. Nxe5 {[%clk 0:02:33]}  Be8 {[%clk 0:02:11]} 14. dxe6 {[%clk 0:02:26]}  Qxe6 {[%clk 0:02:04]} 15. Kb1 {[%clk 0:02:20]}  Nc6 {[%clk 0:01:58]} 16. Bc4 {[%clk 0:02:18]}  Qf6 {[%clk 0:01:58]} 17. Nd5 {[%clk 0:02:08]}  Qd6 {[%clk 0:01:46]} 18. Qe2 {[%clk 0:01:36]}  Nxe5 {[%clk 0:01:31]} 19. fxe5 {[%clk 0:01:35]}  Qxe5 {[%clk 0:01:31]} 20. Qxe5 {[%clk 0:01:34]}  Bxe5 {[%clk 0:01:31]} 21. Rhe1 {[%clk 0:01:28]}  Bd6 {[%clk 0:01:27]} 22. Nf6+ {[%clk 0:01:25]}  Kg7 {[%clk 0:01:27]} 23. Ne4 {[%clk 0:01:24]}  Bb4 {[%clk 0:01:14]} 24. c3 {[%clk 0:01:20]}  Ba5 {[%clk 0:01:14]} 25. Nc5 {[%clk 0:01:11]}  Bc6 {[%clk 0:01:12]} 26. g3 {[%clk 0:01:05]}  Rae8 {[%clk 0:01:08]} 27. Rf1 {[%clk 0:01:02]}  Re7 {[%clk 0:00:59]} 28. Rd2 {[%clk 0:00:56]}  Rfe8 {[%clk 0:00:58]} 29. Rdf2 {[%clk 0:00:52]}  Re1+ {[%clk 0:00:56]} 30. Rxe1 {[%clk 0:00:51]}  Rxe1+ {[%clk 0:00:57]} 31. Kc2 {[%clk 0:00:50]}  Re7 {[%clk 0:00:58]} 32. Rd2 {[%clk 0:00:33]}  Bb6 {[%clk 0:00:55]} 33. Nd3 {[%clk 0:00:25]}  Re3 {[%clk 0:00:51]} 34. g4 {[%clk 0:00:22]}  Be4 {[%clk 0:00:49]} 35. Kb3 {[%clk 0:00:18]}  f5 {[%clk 0:00:46]} 36. gxf5 {[%clk 0:00:17]}  Bxf5 {[%clk 0:00:43]} 37. Nf4 {[%clk 0:00:16]}  Re4 {[%clk 0:00:41]} 38. Nd5 {[%clk 0:00:15]}  Rxh4 {[%clk 0:00:38]} 39. Nxb6 {[%clk 0:00:14]}  cxb6 {[%clk 0:00:38]} 40. Bd5 {[%clk 0:00:14]}  Kf6 {[%clk 0:00:31]} 41. Bxb7 {[%clk 0:00:13]}  Be6+ {[%clk 0:00:31]} 42. Kc2 {[%clk 0:00:11]}  a5 {[%clk 0:00:32]} 43. Rd6 {[%clk 0:00:09]}  Ke5 {[%clk 0:00:26]} 44. Rxb6 {[%clk 0:00:08]}  Rh2+ {[%clk 0:00:27]} 45. Kc1 {[%clk 0:00:05]}  g5 {[%clk 0:00:24]} 46. Rb5+ {[%clk 0:00:02]}  Kf4 {[%clk 0:00:25]} 47. Rxa5 {[%clk 0:00:02]}  g4 {[%clk 0:00:25]} 48. Ra4+ {[%clk 0:00:01]}  Kg3 {[%clk 0:00:23]} 0-1


[Site "https://www.chess.com"]

[Event "Titled Tuesday Blitz January 10 Early 2023"]
[White "Kiseleva, Arina"]
[Black "De Souza, Cristiano Gomes"]
[WhiteFideId "4164989"]
[BlackFideId "2151758"]
[WhiteElo "1962"]
[BlackElo "2018"]
[Result "1/2-1/2"]
[Round "08"]
[TimeControl "180+2"]
[Date "2023.01.10"]
[WhiteClock "0:00:04"]
[BlackClock "0:00:20"]

1. d4 {[%clk 0:03:00]}  Nf6 {[%clk 0:02:55]} 2. Nf3 {[%clk 0:02:59]}  g6 {[%clk 0:02:55]} 3. c4 {[%clk 0:02:59]}  Bg7 {[%clk 0:02:56]} 4. Nc3 {[%clk 0:02:59]}  d6 {[%clk 0:02:56]} 5. e4 {[%clk 0:02:59]}  O-O {[%clk 0:02:54]} 6. h3 {[%clk 0:02:59]}  e5 {[%clk 0:02:54]} 7. d5 {[%clk 0:02:59]}  Nbd7 {[%clk 0:02:54]} 8. Be3 {[%clk 0:02:57]}  Nc5 {[%clk 0:02:53]} 9. Nd2 {[%clk 0:02:53]}  a5 {[%clk 0:02:52]} 10. Be2 {[%clk 0:02:49]}  b6 {[%clk 0:02:52]} 11. Qc2 {[%clk 0:02:44]}  Nfd7 {[%clk 0:02:50]} 12. g4 {[%clk 0:02:37]}  a4 {[%clk 0:02:28]} 13. Nf1 {[%clk 0:02:34]}  Ra5 {[%clk 0:02:06]} 14. Ng3 {[%clk 0:02:34]}  Bb7 {[%clk 0:01:57]} 15. h4 {[%clk 0:02:32]}  c6 {[%clk 0:01:57]} 16. h5 {[%clk 0:02:30]}  cxd5 {[%clk 0:01:57]} 17. Nxd5 {[%clk 0:02:18]}  Bxd5 {[%clk 0:01:53]} 18. exd5 {[%clk 0:02:03]}  Qe7 {[%clk 0:01:47]} 19. hxg6 {[%clk 0:01:36]}  hxg6 {[%clk 0:01:45]} 20. Bh6 {[%clk 0:01:29]}  e4 {[%clk 0:01:44]} 21. Bxg7 {[%clk 0:01:27]}  Kxg7 {[%clk 0:01:45]} 22. Qd2 {[%clk 0:01:18]}  Rh8 {[%clk 0:01:25]} 23. Rxh8 {[%clk 0:01:15]}  Kxh8 {[%clk 0:01:26]} 24. O-O-O {[%clk 0:01:11]}  Kg7 {[%clk 0:01:10]} 25. Rh1 {[%clk 0:01:07]}  Qe5 {[%clk 0:01:00]} 26. Qh6+ {[%clk 0:00:14]}  Kf6 {[%clk 0:01:00]} 27. Nf5 {[%clk 0:00:12]}  Nd3+ {[%clk 0:00:24]} 28. Bxd3 {[%clk 0:00:11]}  exd3 {[%clk 0:00:25]} 29. Qh8+ {[%clk 0:00:11]}  Kg5 {[%clk 0:00:20]} 30. Qh6+ {[%clk 0:00:07]}  Kf6 {[%clk 0:00:19]} 31. Qg7+ {[%clk 0:00:05]}  Kg5 {[%clk 0:00:20]} 32. Qh6+ {[%clk 0:00:04]}  Kf6 {[%clk 0:00:20]} 1/2-1/2


[Site "https://www.chess.com"]

[Event "Titled Tuesday Blitz January 10 Early 2023"]
[White "Tarnowska, Aleksandra"]
[Black "Muzzi, Eduardo"]
[WhiteFideId "1180967"]
[BlackFideId "3001253"]
[WhiteElo "1835"]
[BlackElo "1917"]
[Result "0-1"]
[Round "08"]
[TimeControl "180+2"]
[Date "2023.01.10"]
[WhiteClock "0:00:02"]
[BlackClock "0:00:20"]

1. e4 {[%clk 0:03:00]}  e6 {[%clk 0:02:59]} 2. d4 {[%clk 0:03:00]}  d5 {[%clk 0:02:58]} 3. Nd2 {[%clk 0:03:00]}  Nf6 {[%clk 0:02:56]} 4. e5 {[%clk 0:03:00]}  Nfd7 {[%clk 0:02:56]} 5. Bd3 {[%clk 0:02:58]}  c5 {[%clk 0:02:54]} 6. c3 {[%clk 0:02:58]}  Nc6 {[%clk 0:02:54]} 7. Ne2 {[%clk 0:02:57]}  cxd4 {[%clk 0:02:53]} 8. cxd4 {[%clk 0:02:57]}  f6 {[%clk 0:02:54]} 9. exf6 {[%clk 0:02:56]}  Nxf6 {[%clk 0:02:48]} 10. O-O {[%clk 0:02:56]}  Bd6 {[%clk 0:02:47]} 11. Nf3 {[%clk 0:02:57]}  Qc7 {[%clk 0:02:47]} 12. Bg5 {[%clk 0:02:55]}  O-O {[%clk 0:02:46]} 13. Bh4 {[%clk 0:02:54]}  Nh5 {[%clk 0:02:43]} 14. Ng3 {[%clk 0:02:33]}  Nxg3 {[%clk 0:02:23]} 15. Bxg3 {[%clk 0:02:33]}  Bxg3 {[%clk 0:02:23]} 16. hxg3 {[%clk 0:02:30]}  Bd7 {[%clk 0:02:23]} 17. Ng5 {[%clk 0:02:23]}  h6 {[%clk 0:02:21]} 18. Nf3 {[%clk 0:02:02]}  Be8 {[%clk 0:02:19]} 19. Qe2 {[%clk 0:01:44]}  Rf6 {[%clk 0:01:59]} 20. g4 {[%clk 0:01:29]}  Bg6 {[%clk 0:01:49]} 21. g5 {[%clk 0:01:19]}  hxg5 {[%clk 0:01:35]} 22. Nxg5 {[%clk 0:01:16]}  Bxd3 {[%clk 0:01:34]} 23. Qxd3 {[%clk 0:01:16]}  Rf5 {[%clk 0:01:07]} 24. Nxe6 {[%clk 0:01:03]}  Qf7 {[%clk 0:01:06]} 25. Rae1 {[%clk 0:00:54]}  Re8 {[%clk 0:00:57]} 26. Nc5 {[%clk 0:00:04]}  Rxe1 {[%clk 0:00:56]} 27. Rxe1 {[%clk 0:00:05]}  Rxf2 {[%clk 0:00:53]} 28. Qe3 {[%clk 0:00:05]}  Rxb2 {[%clk 0:00:49]} 29. Qe8+ {[%clk 0:00:04]}  Qxe8 {[%clk 0:00:48]} 30. Rxe8+ {[%clk 0:00:05]}  Kf7 {[%clk 0:00:49]} 31. Rc8 {[%clk 0:00:05]}  Nxd4 {[%clk 0:00:48]} 32. Rc7+ {[%clk 0:00:05]}  Kf6 {[%clk 0:00:47]} 33. Nxb7 {[%clk 0:00:05]}  Rc2 {[%clk 0:00:46]} 34. Rd7 {[%clk 0:00:04]}  Ne2+ {[%clk 0:00:43]} 35. Kh2 {[%clk 0:00:04]}  Nf4 {[%clk 0:00:43]} 36. Nd8 {[%clk 0:00:04]}  Rxg2+ {[%clk 0:00:43]} 37. Kh1 {[%clk 0:00:04]}  Rxa2 {[%clk 0:00:41]} 38. Rf7+ {[%clk 0:00:04]}  Kg6 {[%clk 0:00:40]} 39. Rxf4 {[%clk 0:00:03]}  Kg5 {[%clk 0:00:31]} 40. Rd4 {[%clk 0:00:03]}  Ra5 {[%clk 0:00:30]} 41. Nc6 {[%clk 0:00:04]}  Rc5 {[%clk 0:00:29]} 42. Ne7 {[%clk 0:00:04]}  Kf6 {[%clk 0:00:24]} 43. Ng8+ {[%clk 0:00:03]}  Ke5 {[%clk 0:00:23]} 44. Rd1 {[%clk 0:00:03]}  d4 {[%clk 0:00:24]} 45. Ne7 {[%clk 0:00:02]}  Ke4 {[%clk 0:00:23]} 46. Ng6 {[%clk 0:00:01]}  d3 {[%clk 0:00:23]} 47. Nf8 {[%clk 0:00:01]}  Ke3 {[%clk 0:00:22]} 48. Kg2 {[%clk 0:00:01]}  Ke2 {[%clk 0:00:22]} 49. Rf1 {[%clk 0:00:02]}  Rg5+ {[%clk 0:00:21]} 50. Kh1 {[%clk 0:00:02]}  Kxf1 {[%clk 0:00:20]} 51. Ng6 {[%clk 0:00:03]}  Rh5+ {[%clk 0:00:19]} 52. Nh4 {[%clk 0:00:02]}  Rxh4# {[%clk 0:00:20]} 0-1


[Site "https://www.chess.com"]